bitfinex-derivatives/quotes_SOLF0:USTF0_20251122
["timestamp","ask_amount","ask_price","bid_price","bid_amount"]
[1763791302494,3.05,126.25,126.16,3.21]
[1763791303192,3.05,126.25,126.18,3.21]
[1763791303694,3.05,126.25,126.17,7.1383]
[1763791303695,3.10545371,126.23,126.2,0.05840494]
[1763791304692,7.1359,126.22,126.2,0.05840494]
[1763791304899,3.05,126.21,126.15,16.7]
[1763791305289,3.05,126.19,126.15,3.21]
[1763791305892,3.10005812,126.18,126.16,0.0504368]
[1763791307598,3.05,126.17,126.16,0.0504368]
[1763791308694,3.05,126.17,126.13,16.7]
[1763791308695,3.05,126.16,126.09,3.21]
[1763791309300,3.05,126.13,126.09,3.21]
[1763791309495,3.05,126.13,126.06,3.21]
[1763791309795,0.05985166,126.11,126.08,3.26387561]
[1763791311191,3.10985166,126.11,126.08,3.26387561]
[1763791311500,10.25205166,126.11,126.08,0.05387561]
[1763791312492,0.05985166,126.11,126.08,3.26387561]
[1763791315498,0.05985166,126.11,126.09,16.7]
[1763791315700,0.05985166,126.11,126.1,3.21]
[1763791316202,0.05985166,126.11,126.1,19.91]
[1763791320898,0.05985166,126.11,126.1,3.21]
[1763791321098,3.10985166,126.11,126.08,0.05387561]
[1763791321499,3.10985166,126.11,126.08,3.26387561]
[1763791323914,0.05985166,126.11,126.08,3.26387561]
[1763791324602,0.05985166,126.11,126.08,10.40727561]
[1763791324913,0.05985166,126.11,126.09,3.21]
[1763791325113,3.10985166,126.11,126.08,3.26387561]
[1763791325318,3.10985166,126.11,126.08,0.05387561]
[1763791326816,10.25195166,126.11,126.08,0.05387561]
[1763791327007,3.10985166,126.11,126.08,0.05387561]
[1763791327512,3.32,126.09,126.08,0.05387561]
[1763791328716,4.9,126.09,126.08,0.05387561]
[1763791329217,3.32,126.08,126.03,3.19]
[1763791329414,3.32,126.08,126.02,16.7]
[1763791329618,3.32,126.08,126.02,19.89]
[1763791330010,0.0606434,126.06,126.04,0.05694023]
[1763791330719,0.0606434,126.06,126.04,3.24694023]
[1763791330928,3.32,126.14,126.05,3.19]
[1763791331405,3.32,126.14,126.08,3.19]
[1763791331605,3.32,126.14,126.09,3.19]
[1763791331817,0.05087699,126.13,126.11,3.19]
[1763791332119,0.05099906,126.13,126.11,3.24153873]
[1763791333214,3.37099906,126.13,126.11,0.05153873]
[1763791333515,0.05099906,126.13,126.11,0.05153873]
[1763791334116,0.05099906,126.13,126.11,3.24153873]
[1763791334721,3.32,126.19,126.11,3.24153873]
[1763791334909,3.32,126.19,126.11,3.19]
[1763791335619,10.4579,126.19,126.12,3.19]
[1763791335823,3.37909879,126.17,126.14,0.05040789]
[1763791337418,0.05909879,126.17,126.14,3.24040789]
[1763791338922,3.37909879,126.17,126.14,3.24040789]
[1763791339126,3.37909879,126.17,126.14,0.05040789]
[1763791342230,3.37909879,126.17,126.06,111.1365]
[1763791342231,3.32,126.13,126.05,3.19]
[1763791342526,3.32,126.13,126.05,19.89]
[1763791343327,3.37081546,126.1,126.08,0.05936011]
[1763791343925,0.05081546,126.1,126.08,3.24936011]
[1763791345224,3.37081546,126.1,126.08,0.05936011]
[1763791345426,0.05081546,126.1,126.08,0.05936011]
[1763791346431,0.05081546,126.1,126.08,3.24936011]
[1763791351025,0.05081546,126.1,126.08,0.05936011]
[1763791351331,3.37081546,126.1,126.08,0.05936011]
[1763791355334,3.32,126.09,126.08,0.05936011]
[1763791357623,3.07,126.08,126.02,3.17]
[1763791358635,3.12565581,126.06,126.04,0.05862369]
[1763791360137,3.07,126.05,126.04,0.05862369]
[1763791360338,3.12565581,126.06,126.04,0.05862369]
[1763791363538,3.12565581,126.06,126.0,16.7]
[1763791363743,3.07,126.04,126.0,16.7]
[1763791364643,3.12666849,126.03,126.01,0.05138911]
[1763791366542,10.27336849,126.03,126.01,0.05138911]
[1763791366746,3.07,126.02,126.01,0.05138911]
[1763791366944,0.05666849,126.03,126.01,0.05138911]
[1763791367136,0.05666849,126.03,126.01,3.22138911]
[1763791368740,3.07,126.1,126.03,3.17]
[1763791368945,3.07,126.13,126.04,3.17]
[1763791369336,3.07,126.13,126.06,3.17]
[1763791369846,0.05164079,126.11,126.09,3.17]
[1763791370046,3.07,126.16,126.11,3.17]
[1763791370248,0.05637394,126.15,126.11,3.17]
[1763791370438,3.12637394,126.15,126.12,0.05733701]
[1763791372943,3.12637394,126.15,126.12,3.22733701]
[1763791373137,0.05637394,126.15,126.12,3.22733701]
[1763791373350,3.07,126.2,126.12,3.22733701]
[1763791373552,3.07,126.2,126.12,3.17]
[1763791374252,0.05802251,126.17,126.15,3.22448094]
[1763791374552,0.05802251,126.17,126.15,19.92448094]
[1763791375246,0.05802251,126.17,126.16,3.17]
[1763791375452,3.07,126.23,126.16,3.17]
[1763791375951,3.07,126.23,126.17,16.7]
[1763791376250,3.07,126.22,126.17,16.7]
[1763791376452,3.07,126.2,126.18,0.05793667]
[1763791378261,10.2071,126.2,126.18,0.05793667]
[1763791378550,3.07,126.19,126.18,0.05793667]
[1763791379357,3.07,126.19,126.13,19.87]
[1763791379851,3.07,126.19,126.14,3.17]
[1763791380250,3.12307214,126.18,126.15,0.05924613]
[1763791381152,3.07,126.16,126.08,3.17]
[1763791381347,3.07,126.15,126.08,19.87]
[1763791381544,3.07,126.19,126.09,3.17]
[1763791381948,10.2075,126.19,126.09,10.3128]
[1763791382156,3.07,126.18,126.1,3.17]
[1763791382459,0.06000697,126.15,126.14,3.17]
[1763791382654,0.06000697,126.15,126.13,3.22389908]
[1763791383754,3.07,126.22,126.14,16.7]
[1763791383958,3.07,126.22,126.15,3.17]
[1763791384557,3.07,126.22,126.16,3.17]
[1763791384749,0.0563046,126.2,126.18,3.22268558]
[1763791385156,0.0563046,126.2,126.18,0.05268558]
[1763791385353,0.0563046,126.2,126.18,3.22268558]
[1763791389259,3.0863046,126.2,126.18,0.05268558]
[1763791390660,4.6663046,126.2,126.12,3.16]
[1763791390862,3.03,126.19,126.12,19.84]
[1763791391064,3.03,126.17,126.12,3.16]
[1763791391365,3.03,126.17,126.12,16.68]
[1763791391553,3.08572748,126.16,126.13,0.05114242]
[1763791391755,0.05572748,126.16,126.13,3.21114242]
[1763791399070,3.08572748,126.16,126.13,3.21114242]
[1763791399570,0.05572748,126.16,126.13,3.21114242]
[1763791400662,3.08572748,126.16,126.13,3.21114242]
[1763791400869,3.08572748,126.16,126.13,19.89114242]
[1763791401368,3.08572748,126.16,126.14,3.16]
[1763791401369,0.05572748,126.16,126.14,3.16]
[1763791402464,3.08572748,126.16,126.13,0.05114242]
[1763791402759,3.08572748,126.16,126.13,3.21114242]
[1763791403467,0.05572748,126.16,126.13,3.21114242]
[1763791406372,3.08572748,126.16,126.13,0.05114242]
[1763791406760,3.08572748,126.16,126.13,3.21114242]
[1763791407159,0.05572748,126.16,126.13,3.21114242]
[1763791408673,3.08572748,126.16,126.13,3.21114242]
[1763791412081,0.05572748,126.16,126.13,3.21114242]
[1763791412281,3.08572748,126.16,126.13,3.21114242]
[1763791412580,3.03,126.15,126.13,0.05114242]
[1763791412971,3.03,126.14,126.13,0.05114242]
[1763791413172,3.03,126.14,126.07,3.16]
[1763791413371,3.03,126.14,126.08,16.68]
[1763791413576,3.03,126.11,126.08,19.84]
[1763791413776,3.03,126.11,126.08,3.16]
[1763791414169,3.08696056,126.11,126.08,3.21893763]
[1763791414575,10.22906056,126.11,126.08,3.21893763]
[1763791415576,3.08696056,126.11,126.08,3.21893763]
[1763791415783,0.05696056,126.11,126.08,3.21893763]
[1763791419675,38.0762,126.18,126.08,3.21893763]
[1763791419676,3.24,126.17,126.08,3.21893763]
[1763791419878,3.24,126.17,126.08,3.16]
[1763791420076,10.3786,126.17,126.11,3.26]
[1763791420484,10.3786,126.17,126.13,0.05013218]
[1763791420684,0.05577844,126.15,126.13,0.05013218]
[1763791420884,3.29577844,126.15,126.13,0.05013218]
[1763791421283,0.05577844,126.15,126.13,3.31013218]
[1763791423689,10.3767,126.21,126.14,3.26]
[1763791423892,3.24,126.24,126.14,3.26]
[1763791424780,0.05324232,126.2,126.18,0.06004849]
[1763791425181,3.29324232,126.2,126.18,0.06004849]
[1763791425380,3.24,126.26,126.18,3.32004849]
[1763791425675,3.24,126.26,126.2,3.26]
[1763791426395,3.24,126.23,126.22,0.05016046]
[1763791427396,3.24,126.22,126.17,16.68]
[1763791427581,3.24,126.22,126.17,19.94]
[1763791428190,3.24,126.22,126.18,0.055189]
[1763791428191,0.05479659,126.21,126.18,0.055189]
[1763791428388,3.29479659,126.21,126.18,0.055189]
[1763791430291,3.24,126.2,126.18,0.055189]
[1763791430493,3.24,126.2,126.14,3.26]
[1763791431584,3.24,126.17,126.16,0.05087538]
[1763791434681,0.05325277,126.18,126.16,3.31087538]
[1763791436498,110.997,126.23,126.16,3.31087538]
[1763791436499,3.24,126.27,126.16,4.89087538]
[1763791436792,3.24,126.27,126.17,3.26]
[1763791437893,0.05273632,126.23,126.21,3.31296264]
[1763791439394,3.24,126.27,126.21,3.31296264]
[1763791440198,3.24,126.3,126.22,3.26]
[1763791440505,3.24,126.33,126.27,3.26]
[1763791441596,0.05379398,126.31,126.29,3.31138991]
[1763791442888,3.24,126.36,126.29,3.31138991]
[1763791443094,10.3653,126.41,126.31,3.26]
[1763791443296,3.24,126.41,126.33,3.26]
[1763791443792,3.24,126.41,126.34,3.26]
[1763791444308,0.059733,126.39,126.37,3.26]
[1763791444494,0.05774505,126.39,126.38,19.94]
[1763791444996,0.05774505,126.39,126.37,0.05020357]
[1763791445198,3.29774505,126.39,126.37,0.05020357]
[1763791446189,114.14954505,126.39,126.37,0.05020357]
[1763791446395,3.19,126.36,126.3,2.62]
[1763791446591,3.19,126.34,126.27,19.7]
[1763791447101,3.19,126.32,126.24,3.02]
[1763791447292,3.19,126.32,126.25,16.68]
[1763791447494,3.19,126.32,126.27,0.05528843]
[1763791447495,0.05352978,126.3,126.27,0.05528843]
[1763791447900,0.05352978,126.3,126.27,3.07528843]
[1763791448704,0.05352978,126.3,126.27,0.05528843]
[1763791448905,0.05352978,126.3,126.27,3.07528843]
[1763791449106,0.05352978,126.3,126.27,0.05528843]
[1763791450305,3.19,126.28,126.2,3.02]
[1763791450600,3.19,126.26,126.18,16.68]
[1763791450804,3.19,126.24,126.17,98.1]
[1763791451004,114.1736,126.24,126.17,98.1]
[1763791451304,121.3363,126.21,126.15,16.7]
[1763791451605,110.9945,126.23,126.19,0.0526527]
[1763791451606,3.19,126.23,126.19,0.0526527]
[1763791451806,3.24238269,126.22,126.14,3.02]
[1763791452107,3.19,126.19,126.13,16.7]
[1763791452603,3.19,126.22,126.13,19.72]
[1763791452802,0.05903216,126.19,126.16,3.07551341]
[1763791453604,3.19,126.25,126.16,3.07551341]
[1763791453803,3.19,126.25,126.16,3.02]
[1763791454510,0.05515692,126.22,126.19,0.05327326]
[1763791455009,0.05515692,126.22,126.19,19.79327326]
[1763791456001,3.24515692,126.22,126.19,0.05327326]
[1763791456597,0.05515692,126.22,126.19,3.07327326]
[1763791456910,0.05515692,126.22,126.19,0.05327326]
[1763791457101,0.05515692,126.22,126.19,3.07327326]
[1763791458507,3.19,126.28,126.21,3.02]
[1763791459299,3.19,126.25,126.23,0.05215762]
[1763791464706,3.19,126.25,126.17,19.74]
[1763791464904,3.19,126.25,126.18,3.02]
[1763791465102,3.19,126.28,126.19,3.02]
[1763791465303,3.19,126.31,126.21,3.02]
[1763791465506,3.19,126.31,126.22,3.02]
[1763791465712,0.05603991,126.28,126.25,0.05082944]
[1763791465917,0.05603991,126.28,126.25,3.07082944]
[1763791467703,0.05603991,126.28,126.25,10.20452944]
[1763791467903,0.05603991,126.28,126.26,3.02]
[1763791468212,3.19,126.34,126.26,3.02]
[1763791468413,3.19,126.34,126.28,3.02]
[1763791468611,3.19,126.34,126.29,19.74]
[1763791468811,3.19,126.34,126.28,16.74]
[1763791469017,3.19,126.32,126.28,16.74]
[1763791469223,0.05422699,126.31,126.29,0.05427566]
[1763791469518,3.24422699,126.31,126.29,0.05427566]
[1763791473825,0.05422699,126.31,126.29,3.07427566]
[1763791474218,0.05422699,126.31,126.29,19.79427566]
[1763791475025,3.24422699,126.31,126.29,0.05427566]
[1763791475219,0.05422699,126.31,126.29,0.05427566]
[1763791475811,0.05422699,126.31,126.29,3.36427566]
[1763791477420,3.25422699,126.31,126.29,0.05427566]
[1763791478717,0.05422699,126.31,126.29,0.05427566]
[1763791478912,0.05422699,126.31,126.29,3.36427566]
[1763791479316,7.1284,126.36,126.29,3.36427566]
[1763791479518,7.1284,126.36,126.29,3.31]
[1763791480220,3.2,126.37,126.3,3.31]
[1763791480420,0.05801768,126.34,126.31,3.37113675]
[1763791481521,0.05801768,126.34,126.33,3.31]
[1763791482922,3.25801768,126.34,126.31,0.06113675]
[1763791483321,10.38721768,126.34,126.31,0.06113675]
[1763791483623,3.25801768,126.34,126.31,0.06113675]
[1763791484322,10.38721768,126.34,126.31,0.06113675]
[1763791484823,3.2,126.33,126.31,0.06113675]
[1763791485027,10.3296,126.33,126.31,0.06113675]
[1763791485225,3.2,126.32,126.31,0.06113675]
[1763791486127,3.2,126.3,126.26,16.72]
[1763791486512,3.2,126.3,126.26,20.03]
[1763791487116,0.05097131,126.29,126.27,0.05675819]
[1763791490825,3.25097131,126.29,126.27,0.05675819]
[1763791491521,10.38287131,126.29,126.27,0.05675819]
[1763791494217,3.2,126.28,126.27,0.05675819]
[1763791494427,3.2,126.28,126.22,3.31]
[1763791494934,10.3341,126.25,126.21,3.31]
[1763791495226,3.2,126.24,126.21,3.31]
[1763791495529,3.25866776,126.24,126.21,0.05403587]
[1763791495728,10.39336776,126.24,126.21,0.05403587]
[1763791496031,3.2,126.21,126.15,3.31]
[1763791496328,3.2,126.19,126.12,3.31]
[1763791496528,3.2,126.19,126.12,20.03]
[1763791496921,3.2524031,126.17,126.14,0.05107727]
[1763791498329,3.2,126.16,126.14,0.05107727]
[1763791499233,3.2,126.15,126.14,0.05107727]
[1763791500624,3.2,126.15,126.06,3.31]
[1763791500625,114.2751,126.14,126.06,3.31]
[1763791500822,3.2,126.12,126.04,16.72]
[1763791501328,3.2,126.15,126.06,3.31]
[1763791501538,3.2,126.15,126.07,3.31]
[1763791501727,0.05923606,126.12,126.09,3.36077419]
[1763791502032,3.2,126.16,126.08,3.31]
[1763791502327,3.2,126.15,126.08,3.31]
[1763791502531,3.2,126.14,126.08,3.31]
[1763791502834,3.25083818,126.12,126.02,98.33]
[1763791503025,10.3417,126.12,126.03,3.31]
[1763791503234,3.2,126.11,126.03,3.31]
[1763791503931,0.05971092,126.08,126.06,0.05340961]
[1763791504321,3.25971092,126.08,126.06,0.05340961]
[1763791506234,3.04,126.06,125.97,3.13]
[1763791506435,3.04,126.06,125.98,16.74]
[1763791506735,3.04,126.04,125.98,16.74]
[1763791507033,3.04,126.01,125.91,3.13]
[1763791507234,3.04,126.01,125.92,19.87]
[1763791507432,0.0564216,125.97,125.95,0.05785632]
[1763791508432,3.0964216,125.97,125.95,0.05785632]
[1763791509032,0.0564216,125.97,125.95,0.05785632]
[1763791509329,3.0964216,125.97,125.95,0.05785632]
[1763791509528,3.0964216,125.97,125.91,16.76]
[1763791510037,0.0564216,125.97,125.92,114.3951]
[1763791510225,3.0964216,125.97,125.93,3.13]
[1763791510425,3.0964216,125.97,125.94,0.05509821]
[1763791511033,0.0564216,125.97,125.94,3.18509821]
[1763791511244,0.0564216,125.97,125.94,0.05509821]
[1763791511938,3.0964216,125.97,125.94,0.05509821]
[1763791512834,121.4696216,125.97,125.94,0.05509821]
[1763791513035,3.04,125.93,125.85,3.13]
[1763791513938,0.06007668,125.9,125.88,0.05329246]
[1763791514336,3.10007668,125.9,125.88,0.05329246]
[1763791514536,0.06007668,125.9,125.88,0.05329246]
[1763791515038,3.10007668,125.9,125.88,0.05329246]
[1763791515231,0.06007668,125.9,125.88,0.05329246]
[1763791515426,3.10007668,125.9,125.88,0.05329246]
[1763791515639,3.04,125.87,125.78,3.13]
[1763791516137,3.04,125.87,125.79,19.91]
[1763791516337,3.04,125.87,125.8,3.13]
[1763791516839,0.05417305,125.85,125.82,0.05262335]
[1763791517828,0.05417305,125.85,125.82,3.18262335]
[1763791518238,10.1924,125.93,125.83,3.13]
[1763791518438,3.04,125.93,125.84,3.13]
[1763791518629,3.04,125.92,125.84,19.93]
[1763791519640,3.04,125.91,125.85,3.13]
[1763791519836,3.04,125.91,125.87,3.18020487]
[1763791519837,0.06011243,125.89,125.87,3.18020487]
[1763791520443,3.10011243,125.89,125.87,0.05020487]
[1763791520939,0.06011243,125.89,125.87,3.18020487]
[1763791522237,0.06011243,125.89,125.87,0.05020487]
[1763791525239,3.04,125.88,125.81,3.13]
[1763791525441,3.04,125.87,125.81,3.13]
[1763791525744,3.04,125.9,125.81,3.13]
[1763791526245,0.05475073,125.87,125.84,0.05569219]
[1763791526745,3.09475073,125.87,125.84,0.05569219]
[1763791527347,3.04,125.85,125.84,0.05569219]
[1763791529844,114.3763,125.84,125.78,19.95]
[1763791530144,3.04,125.83,125.76,19.95]
[1763791530340,3.04,125.83,125.74,95.16]
[1763791530341,3.04,125.82,125.74,95.16]
[1763791530644,3.04,125.82,125.75,19.95]
[1763791530845,0.05989998,125.8,125.77,0.05426029]
[1763791531040,3.09989998,125.8,125.77,0.05426029]
[1763791532150,0.05989998,125.8,125.77,3.18426029]
[1763791532646,3.09989998,125.8,125.77,0.05426029]
[1763791534246,3.04,125.78,125.7,3.13]
[1763791534454,3.04,125.75,125.66,19.95]
[1763791534749,3.04,125.78,125.67,3.13]
[1763791535145,7.1621,125.76,125.67,3.13]
[1763791535355,0.05758443,125.74,125.71,3.18023254]
[1763791535547,0.05758443,125.74,125.73,3.24]
[1763791536145,3.14,125.83,125.74,3.01]
[1763791536546,7.1585,125.82,125.74,3.01]
[1763791536848,3.14,125.83,125.74,3.01]
[1763791537146,0.0545327,125.8,125.78,3.01]
[1763791537354,0.0545327,125.8,125.78,19.85]
[1763791538158,3.1945327,125.8,125.78,16.84]
[1763791538352,3.1945327,125.8,125.77,0.0561778]
[1763791538553,3.14,125.79,125.77,0.0561778]
[1763791538851,114.5206,125.79,125.77,0.0561778]
[1763791539055,3.14,125.78,125.77,0.0561778]
[1763791540345,3.14,125.75,125.62,111.5227]
[1763791540651,3.14,125.74,125.66,3.01]
[1763791540852,10.3032,125.74,125.66,19.85]
[1763791541049,114.5783,125.73,125.66,19.85]
[1763791541245,3.14,125.72,125.66,19.85]
[1763791541448,0.05086867,125.7,125.68,0.05770063]
[1763791541856,3.19086867,125.7,125.68,0.05770063]
[1763791542558,3.14,125.69,125.68,0.05770063]
[1763791544948,0.05086867,125.7,125.68,0.05770063]
[1763791546053,0.05086867,125.7,125.68,3.06770063]
[1763791546252,111.3782,125.8,125.69,3.01]
[1763791546253,3.14,125.77,125.69,3.01]
[1763791547361,0.05239491,125.74,125.72,0.05192517]
[1763791547560,0.05239491,125.74,125.72,3.06192517]
[1763791548147,3.14,125.8,125.72,3.06192517]
[1763791548445,3.14,125.8,125.72,3.01]
[1763791549261,0.05097941,125.77,125.75,0.05495465]
[1763791549646,3.19097941,125.77,125.75,0.05495465]
[1763791551562,10.35237941,125.77,125.75,0.05495465]
[1763791551765,3.14,125.76,125.75,0.05495465]
[1763791553554,3.14,125.75,125.71,16.86]
[1763791553751,3.14,125.74,125.66,19.87]
[1763791554750,0.06033473,125.71,125.69,0.05541499]
[1763791554955,0.06033473,125.71,125.69,3.06541499]
[1763791555155,0.06033473,125.71,125.69,0.05541499]
[1763791556052,0.06033473,125.71,125.69,3.06541499]
[1763791556253,7.1617,125.77,125.69,3.06541499]
[1763791556460,7.1617,125.77,125.69,3.01]
[1763791556662,10.3017,125.77,125.69,3.01]
[1763791557168,0.05427151,125.74,125.72,0.05604342]
[1763791557356,0.05987129,125.74,125.72,0.05604342]
[1763791557551,0.05987129,125.74,125.72,3.06604342]
[1763791557855,0.05987129,125.74,125.73,3.01]
[1763791558055,0.05987129,125.74,125.72,16.91604342]
[1763791558453,0.05987129,125.74,125.72,19.92604342]
[1763791559968,0.05987129,125.74,125.72,16.91604342]
[1763791560462,3.19987129,125.74,125.72,16.91604342]
[1763791560656,7.1654,125.7,125.62,3.01]
[1763791560860,3.14,125.72,125.64,3.01]
[1763791561066,10.36317129,125.74,125.64,3.01]
[1763791561261,0.05987129,125.74,125.66,114.5021]
[1763791561567,3.14,125.76,125.67,3.01]
[1763791562166,7.1631,125.74,125.67,3.01]
[1763791562468,3.14,125.76,125.67,3.01]
[1763791562666,114.5682,125.74,125.64,10.1782]
[1763791562968,3.14,125.72,125.64,19.87]
[1763791563170,7.1648,125.71,125.64,19.87]
[1763791563363,3.14,125.72,125.65,3.01]
[1763791564072,3.14,125.75,125.66,3.01]
[1763791564772,3.14,125.75,125.67,10.1767]
[1763791564966,3.14,125.75,125.67,3.01]
[1763791565571,7.1631,125.74,125.67,3.01]
[1763791565879,3.1,125.72,125.63,3.34]
[1763791566173,0.0542958,125.69,125.66,0.0591976]
[1763791566473,0.0542958,125.69,125.66,3.3991976]
[1763791566771,3.1,125.75,125.67,3.34]
[1763791566970,10.2611,125.78,125.7,3.34]
[1763791567270,10.2611,125.78,125.7,20.22]
[1763791567472,7.1614,125.77,125.7,20.22]
[1763791567669,0.05127475,125.75,125.72,0.05117096]
[1763791568665,0.05127475,125.75,125.72,3.39117096]
[1763791569667,3.15127475,125.75,125.72,0.05117096]
[1763791570274,10.31377475,125.75,125.72,0.05117096]
[1763791570469,0.05127475,125.75,125.72,0.05117096]
[1763791571170,0.05127475,125.75,125.72,3.39117096]
[1763791571369,0.05127475,125.75,125.72,0.05117096]
[1763791571563,3.15127475,125.75,125.72,0.05117096]
[1763791572371,0.05127475,125.75,125.72,0.05117096]
[1763791572583,3.1,125.78,125.72,3.39117096]
[1763791573976,3.1,125.81,125.72,3.39117096]
[1763791574177,3.1,125.81,125.73,3.34]
[1763791574375,3.1,125.81,125.74,3.34]
[1763791574581,10.2592,125.81,125.74,3.34]
[1763791575176,0.05644364,125.79,125.76,3.39707165]
[1763791575377,0.05644364,125.79,125.77,3.34]
[1763791578084,0.05644364,125.79,125.76,16.93707165]
[1763791578587,3.15644364,125.79,125.76,16.93707165]
[1763791578790,0.05644364,125.79,125.76,20.27707165]
[1763791578982,0.05644364,125.79,125.77,3.34]
[1763791579379,0.05644364,125.79,125.76,16.93707165]
[1763791579886,0.05644364,125.79,125.76,20.27707165]
[1763791581993,0.05644364,125.79,125.77,3.34]
[1763791582687,10.2569,125.85,125.77,3.34]
[1763791583282,3.1,125.82,125.76,16.86]
[1763791583687,0.05374292,125.8,125.78,0.05075044]
[1763791583887,3.15374292,125.8,125.78,0.05075044]
[1763791584492,3.1,125.79,125.78,0.05075044]
[1763791585486,3.1,125.78,125.74,16.86]
[1763791585686,3.1,125.78,125.74,20.2]
[1763791586085,3.1,125.78,125.74,16.86]
[1763791586497,0.05871018,125.77,125.75,0.05627463]
[1763791587090,3.15871018,125.77,125.75,0.05627463]
[1763791588001,10.32011018,125.77,125.75,0.05627463]
[1763791588198,3.1,125.76,125.75,0.05627463]
[1763791588593,0.05871018,125.77,125.75,0.05627463]
[1763791588802,3.15871018,125.77,125.75,0.05627463]
[1763791591306,10.32011018,125.77,125.75,0.05627463]
[1763791591507,3.1,125.76,125.75,0.05627463]
[1763791591702,0.05871018,125.77,125.75,0.05627463]
[1763791592507,3.15871018,125.77,125.75,0.05627463]
[1763791593002,10.32031018,125.77,125.75,0.05627463]
[1763791593209,3.1,125.76,125.75,0.05627463]
[1763791593600,3.1,125.75,125.68,3.34]
[1763791593801,3.1,125.75,125.68,20.2]
[1763791594301,3.1,125.74,125.68,20.2]
[1763791594594,3.15042264,125.72,125.7,0.05049501]
[1763791595610,3.19,125.71,125.7,0.05049501]
[1763791599512,3.09,125.69,125.65,3.34]
[1763791599820,3.09,125.69,125.64,16.86]
[1763791600411,3.09,125.69,125.62,19.99]
[1763791600607,0.05099048,125.67,125.64,0.05237076]
[1763791601013,0.05099048,125.67,125.64,3.18237076]
[1763791602111,3.14099048,125.67,125.64,0.05237076]
[1763791605717,3.09,125.66,125.58,3.13]
[1763791605923,3.09,125.64,125.54,3.13]
[1763791606121,3.09,125.64,125.55,19.97]
[1763791606318,10.2599,125.62,125.55,27.1437]
[1763791606513,3.09,125.62,125.56,3.13]
[1763791606715,10.2583,125.65,125.57,3.13]
[1763791607021,0.05086937,125.62,125.6,3.18102226]
[1763791608008,3.09,125.68,125.6,4.78102226]
[1763791608214,3.09,125.68,125.61,19.97]
[1763791608521,10.2548,125.71,125.63,3.13]
[1763791608819,3.09,125.71,125.63,3.13]
[1763791609020,7.1654,125.7,125.66,0.06011677]
[1763791609322,0.05014641,125.68,125.66,0.06011677]
[1763791610225,0.05014641,125.68,125.66,3.19011677]
[1763791610826,7.1627,125.75,125.68,3.13]
[1763791611031,3.09,125.75,125.68,3.13]
[1763791611921,0.05777445,125.73,125.71,3.13]
[1763791612128,0.05253224,125.73,125.71,3.18446738]
[1763791612723,3.09,125.78,125.71,3.18446738]
[1763791613326,10.2501,125.8,125.71,3.18446738]
[1763791613530,10.2501,125.8,125.71,3.13]
[1763791613731,0.05192488,125.77,125.74,0.05605593]
[1763791615024,0.05192488,125.77,125.74,3.18605593]
[1763791615224,0.05192488,125.77,125.74,10.34875593]
[1763791615424,3.09,125.83,125.75,3.13]
[1763791616327,0.05451662,125.8,125.78,0.05131222]
[1763791616723,3.14451662,125.8,125.78,0.05131222]
[1763791616928,0.05451662,125.8,125.78,0.05131222]
[1763791617533,3.14451662,125.8,125.78,0.05131222]
[1763791619538,10.30431662,125.8,125.78,0.05131222]
[1763791619733,3.09,125.79,125.78,0.05131222]
[1763791620527,3.14451662,125.8,125.78,0.05131222]
[1763791621348,3.09,125.84,125.78,3.18131222]
[1763791621540,3.09,125.87,125.78,3.18131222]
[1763791621746,3.09,125.87,125.8,3.13]
[1763791622233,3.09,125.86,125.76,3.13]
[1763791622433,0.05159315,125.82,125.8,3.19006066]